Cogmind - Beta 16.1 @@@ ROGUE MODE // 2026.04.14 @ 09:23:58 Player: Wulphy Result: Destroyed by S-27 Virus with Autogun Performance ------------- Evolutions (4) 2000 Regions Visited (5) 1000 Robots Destroyed (46) 230 Value Destroyed (1307) 1307 Prototype IDs (28) 560 Alien Tech Used (0) 0 Bonus (1011) 1011 TOTAL SCORE: 6108 Bonus ------- Follower Combat Kills 268 Registered with UFD 300 Met Optimus in HQ 500 Friendly Fire -57 Cogmind --------- Core Integrity 0/850 Matter 300/300 Energy 100/100 System Corruption 6% Temperature Cool (0) Movement Core (50) Location -6/Factory Parts ------- > --- POWER (2) -------- (None) > --- PROPULSION (5) --- (None) > --- UTILITY (6) ------ (None) > --- WEAPON (2) ------- (None) > --- INVENTORY (5) ---- Cargo Legs IFF Parser Experimental Terrain Scanner Companion Sword Peak State ------------ > --- POWER ------------ Light Fission Core > --- PROPULSION ------- Advanced Treads Improved Medium Treads Flexi-carbon Leg Flexi-carbon Leg Flexi-carbon Leg > --- UTILITY ---------- Disposable Heat Sink High-capacity Storage Unit Seismic Detector Improved Melee Analysis Suite Phase Shifter EM Shield > --- WEAPON ----------- Companion Sword > --- INVENTORY -------- Cargo Legs IFF Parser Experimental Terrain Scanner Improved Particle Charger Phase Shifter Authchip [Propulsion] Authchip [Device] Scrapoid Pod Subdweller Laser CPS Tube Multitool Vortex Trap Vortex Trap Vortex Trap [Rating: 59] Favorites ----------- Power Light Ion Engine Engine Light Ion Engine Power Core Light Fission Core Propulsion Compact Wheel Treads Light Treads Leg Flexi-carbon Leg Wheel Compact Wheel Utility Huge Storage Unit Device Seismic Detector Storage Huge Storage Unit Processor Improved Melee Analysis Suite Hackware Improved System Shield Protection Core Shielding Weapon Subdweller Machine Gun Energy Gun Subdweller Laser Ballistic Gun Subdweller Machine Gun Launcher Grenade Launcher Impact Weapon Maul Slashing Weapon Companion Sword Build | -11 -10 -10 -9 -9 -6 ------- Run | Yrd Mat Sub Rec Scr Fac Slots Evolved 8 | . . . . . 8 Power 1 | . . . . . 1 Propulsion 3 | . . . . . 3 Utility 4 | . . . . . 4 Weapon . | . . . . . . Parts Attached 60 | 7 7 8 2 3 33 Power 8 | 1 . 2 . 1 4 Engine 7 | 1 . 2 . 1 3 Core 1 | . . . . . 1 Reactor . | . . . . . . Propulsion 24 | 2 3 2 . 1 16 Treads 12 | 2 1 1 . . 8 Leg 8 | . . . . . 8 Wheel 4 | . 2 1 . 1 . Hover . | . . . . . . Flight . | . . . . . . Utility 17 | 2 1 1 2 1 10 Device 8 | 1 . . 1 . 6 Storage 3 | 1 1 1 . . . Processor 2 | . . . . . 2 Hackware 1 | . . . . . 1 Protection 3 | . . . 1 1 1 Artifact . | . . . . . . Weapon 11 | 2 3 3 . . 3 Energy Gun 3 | 1 . 2 . . . Energy Cannon . | . . . . . . Ballistic Gun 4 | 1 1 1 . . 1 Ballistic Cannon . | . . . . . . Launcher 2 | . 1 . . . 1 Special Weapon . | . . . . . . Impact Weapon 1 | . 1 . . . . Slashing Weapon 1 | . . . . . 1 Piercing Weapon . | . . . . . . Special Melee Weapon . | . . . . . . Unidentified Prototypes 1 | . . . . . 1 Parts Lost 38 | . . 6 . . 32 Power 6 | . . 2 . . 4 Propulsion 19 | . . 2 . . 17 Utility 8 | . . . . . 8 Weapon 5 | . . 2 . . 3 Highest Loss Streak 17 | . . 3 . . 17 To Critical Strikes . | . . . . . . Average Backups 19 | 2 11 20 23 22 13 Power . | . . 1 1 . . Propulsion 5 | 1 4 6 6 6 2 Utility 7 | . 2 6 9 10 6 Weapon 4 | . 5 6 5 3 1 Tool/Special . | . . . . . . Unused Backups 32 | . 2 3 6 13 8 Power 3 | . 1 . . 2 . Propulsion 9 | . 1 . 1 6 1 Utility 12 | . . 1 3 4 4 Weapon 5 | . . 2 2 1 . Tool/Special 3 | . . . . . 3 Average Slot Usage (%) 97 | . 99 99 100 100 84 Engine 12 | . 14 13 14 14 6 Treads 10 | . 16 14 14 1 17 Leg 1 | . . . . . 7 Wheel 16 | . 11 13 14 26 4 Device 8 | . 14 14 4 . 17 Storage 12 | . 14 14 14 14 5 Protection 6 | . . . 9 14 4 Energy Gun 10 | . 10 7 14 14 4 Ballistic Gun 11 | . 13 12 14 14 2 Impact Weapon 2 | . 3 8 . . . Peak Build Rating 59 | 7 10 15 16 24 59 Average Rating 19 | 5 8 12 15 20 47 On Entrance 12 | . 7 10 15 16 24 Avg Prop Armor Cover (%) 14 | . 12 14 15 16 15 Naked Turns 5 | . . . . . 5 Heaviest Build 122 | 13 49 94 94 108 122 Greatest Support 108 | 40 40 20 16 28 108 Greatest Overweight (x) 5 | . 4 5 5 5 4 Average Overweight (x) 3 | . 2 4 5 3 1 Largest Inventory Capacity 25 | 8 20 25 25 25 25 Average Capacity 23 | 7 18 23 25 25 21 Most Carried 25 | 6 18 25 25 25 25 Average Carried 21 | 2 11 21 24 24 18 Final Capacity 25 | 8 20 25 25 25 5 Final Carried 25 | 6 18 25 25 25 5 Class Distribution -------------------- 49% | Commander-Mutant 27% | Mutant 23% | Scavenger-Mutant Dominant Class ---------------- Mutant | -10/Materials Mutant | -10/Subcaves Commander-Mutant | -9/Recycling Commander-Mutant | -9/Scraptown Scavenger-Mutant | -6/Factory Resources | -11 -10 -10 -9 -9 -6 ----------- Run | Yrd Mat Sub Rec Scr Fac Matter Collected 1547 | 297 296 307 192 30 425 Remotely . | . . . . . . Salvage Created 1629 | 122 371 291 98 . 747 Parts 96 | 5 23 15 5 . 48 Haulers Intercepted 1 | . 1 . . . . Recyclers Shooed 1 | 1 . . . . . Parts Field Recycled . | . . . . . . Retrieved Matter . | . . . . . . Parts Self-Destructed 4 | . . 4 . . . Prevented . | . . . . . . Parts Restored . | . . . . . . Kills | -11 -10 -10 -9 -9 -6 ------- Run | Yrd Mat Sub Rec Scr Fac Combat Hostiles Destroyed 30 | . 7 10 2 . 11 Melee 6 | . . . . . 6 Guns 13 | . 2 5 2 . 4 AOE 10 | . 5 4 . . 1 Classes Destroyed 17 | 2 4 3 1 . 7 Worker 3 | . . . . . 3 Builder 4 | . . . . . 4 Tunneler 2 | 1 1 . . . . Hauler 1 | . 1 . . . . Recycler 3 | 1 1 . . . 1 Turret 2 | . . 2 . . . Watcher 1 | . 1 . . . . Swarmer 9 | . 5 4 . . . Grunt 5 | . 2 . . . 3 Brawler 1 | . . . . . 1 Duelist 1 | . . . . . 1 Sentry 1 | . . . . . 1 Demolisher 2 | . . . 2 . . Hunter 4 | . . . . . 4 Programmer 1 | . . . . . 1 Artisan 1 | . . 1 . . . Subdweller 6 | . . 6 . . . Best Kill Streak 9 | 1 3 6 1 . 9 Combat Bots Only 4 | . 3 4 1 . 2 Max Kills in Single Turn 3 | 1 3 2 1 . 3 Gunslinging . | . . . . . . Exploded 3 | . 3 2 . . 1 Melee 1 | . . . . . 1 Uniques/NPCs Destroyed . | . . . . . . Combat | -11 -10 -10 -9 -9 -6 -------- Run | Yrd Mat Sub Rec Scr Fac Hostile Shots Fired 404 | . 18 52 . . 334 Missed 119 | . 8 19 . . 92 Hits 285 | . 10 33 . . 242 Melee 6 | . . . . . 6 Projectile 279 | . 10 33 . . 236 Critical Strikes 8 | . . . . . 8 Damage Taken 4755 | . 119 614 60 . 3962 Core 1039 | . 34 118 30 . 857 Absorbed by Shields 32 | . . . 3 . 29 Redirected to Shielding 6 | . . . 6 . . Ignored by Resistances 76 | . . . . . 76 Core Remaining (%) 63 | 100 . . . 27 . Volleys Fired 127 | 9 28 45 5 . 40 Largest 2 | 2 2 2 2 . 2 Hottest 120 | 70 70 90 90 . 120 Shots Fired 214 | 18 48 69 10 . 69 Gun 195 | 18 43 61 10 . 63 Cannon . | . . . . . . Launcher 19 | . 5 8 . . 6 Special . | . . . . . . Kinetic 86 | 9 23 25 5 . 24 Thermal 109 | 9 20 36 5 . 39 Explosive 19 | . 5 8 . . 6 Electromagnetic . | . . . . . . Robot Hit Streak 22 | 11 8 22 19 . 7 Robot Miss Streak 4 | 2 4 2 . . 4 Penetration Max . | . . . . . . Secondary Targets . | . . . . . . Shots Hit Robots 173 | 14 30 50 9 . 70 Core Hits 88 | 3 15 28 3 . 39 Critical Kills . | . . . . . . Critical Parts Destroyed 5 | . 2 2 . . 1 Critical Strikes 11 | . 3 3 . . 5 Burn 2 | . 1 1 . . . Destroy 2 | . . 1 . . 1 Smash 3 | . 2 1 . . . Melee Attacks 81 | . 5 31 . . 45 Impact 36 | . 5 31 . . . Slashing 45 | . . . . . 45 Piercing . | . . . . . . Sneak Attacks 2 | . 1 . . . 1 Combat Hostiles . | . . . . . . Follow-up Attacks 2 | . . . . . 2 Damage Inflicted 5425 | 176 658 1343 182 . 3066 Guns 2194 | 176 359 703 182 . 774 Cannons . | . . . . . . Explosions 1448 | . 206 365 . . 877 Melee 1783 | . 93 275 . . 1415 Ramming . | . . . . . . Kinetic 933 | 77 182 323 81 . 270 Thermal 1375 | 99 177 380 101 . 618 Explosive 1334 | . 206 365 . . 763 Electromagnetic . | . . . . . . Impact 368 | . 93 275 . . . Slashing 1415 | . . . . . 1415 Piercing . | . . . . . . Highest Corruption 6 | . . . . . 6 Average Corruption 5 | . . . . . 5 Corruption Purged . | . . . . . . Corruption Blocked . | . . . . . . Effects 21 | . . . . . 21 Message Errors 4 | . . . . . 4 Matter Fused 3 | . . . . . 3 Energy Discharges 3 | . . . . . 3 Parts Rejected 1 | . . . . . 1 Data Loss (minor) 6 | . . . . . 6 Data Loss (major) 1 | . . . . . 1 Misfires 1 | . . . . . 1 Alerts 2 | . . . . . 2 Overload Shots . | . . . . . . Overflow Damage 285 | . 93 57 . . 135 Projectiles . | . . . . . . Explosions 111 | . . . . . 111 Melee 174 | . 93 57 . . 24 Knockbacks 1 | . . 1 . . . Impact 1 | . . 1 . . . Kinetic . | . . . . . . Secondary . | . . . . . . Self-Inflicted Damage 31 | . 31 . . . . Shots 1 | . 1 . . . . Rammed . | . . . . . . Targets Rammed . | . . . . . . Kicked . | . . . . . . Crushed . | . . . . . . Highest Temperature 189 | 54 54 . 37 . 189 Average Temperature 43 | 23 22 . 15 . 60 Received Heat Transfer 712 | . 30 180 7 . 495 Siege Activations . | . . . . . . Martial Activations . | . . . . . . Shielding Activations . | . . . . . . Robots Disrupted . | . . . . . . Combat Hostiles . | . . . . . . Robots Corrupted 2 | . 1 1 . . . Combat Hostiles 1 | . . 1 . . . Parts Fried 3 | . 3 . . . . Impact Corruptions 6 | . 3 3 . . . Robots Melted . | . . . . . . Combat Hostiles . | . . . . . . Parts Melted 5 | . 1 4 . . . Heat Transferred 2444 | 296 592 781 125 . 650 Parts Sabotaged . | . . . . . . Parts Stolen . | . . . . . . Parts Stripped . | . . . . . . Power Chain Reactions . | . . . . . . Alert | -11 -10 -10 -9 -9 -6 ------- Run | Yrd Mat Sub Rec Scr Fac Maximum Alert Level . | . . . . . . Low Security (%) 100 | 100 100 . 100 . 100 Level 1 . | . . . . . . Level 2 . | . . . . . . Level 3 . | . . . . . . Level 4 . | . . . . . . Level 5 . | . . . . . . High Security . | . . . . . . Max Security . | . . . . . . Peak Influence 174 | 5 98 . 174 . 133 Initial 153 | . . . 153 . . Average 37 | . 34 . 48 . 30 Influence Increases 1500 | 10 259 330 314 . 587 Destroy 0b10 Robot/C 660 | . 140 120 100 . 300 Destroy 0b10 Robot/NC 85 | 10 30 . 5 . 40 Destroy Leader 124 | . 44 . . . 80 Allied During Kill 59 | . . . 37 . 22 Successful Hack 53 | . 5 . 17 . 31 Select Force Hacks 120 | . . . 120 . . Disable Machine 60 | . 15 . 15 . 30 Destroy Structure 99 | . 25 . 20 . 54 Lose Combat Pursuer 240 | . . 210 . . 30 Influence Decreases 1500 | 10 259 11 594 39 587 Entered New Map 205 | . . . 166 39 . Time Decay 1010 | 10 259 11 408 . 322 Lost Part 225 | . . . . . 225 Lost Ally 60 | . . . 20 . 40 Squads Dispatched 11 | . 2 . . . 9 Investigation 2 | . 1 . . . 1 Extermination 1 | . . . . . 1 Reinforcement 2 | . 1 . . . 1 Assault . | . . . . . . Garrison 6 | . . . . . 6 Intercept . | . . . . . . Searches Triggered . | . . . . . . Construction Impeded 1 | . . . . . 1 Haulers Reinforced . | . . . . . . Active Scanning Responses . | . . . . . . Cargo Convoy Interrupts . | . . . . . . Stealth | -11 -10 -10 -9 -9 -6 --------- Run | Yrd Mat Sub Rec Scr Fac Distress Signals . | . . . . . . Communications Jammed . | . . . . . . Distress Signals . | . . . . . . Times Spotted 53 | . 14 11 4 . 24 Peak Tracking Total 5 | . 3 3 1 . 5 Tactical Retreats 3 | . . 2 . . 1 Traps | -11 -10 -10 -9 -9 -6 ------- Run | Yrd Mat Sub Rec Scr Fac Traps Triggered 3 | . 3 . . . . Indirectly . | . . . . . . Trap Hack Attempts . | . . . . . . Triggered . | . . . . . . Disarmed . | . . . . . . Reprogrammed . | . . . . . . Reused . | . . . . . . Traps Extracted . | . . . . . . Installed 1 | . . . . . 1 Triggered . | . . . . . . Most Traps Carried 3 | . . . . 3 3 Machines | -11 -10 -10 -9 -9 -6 ---------- Run | Yrd Mat Sub Rec Scr Fac Machines Disabled 8 | . 1 4 1 . 2 Max in Single Turn 2 | . 1 2 . . 2 Garrison Access 1 | . . . . . 1 Machines Repaired . | . . . . . . Machines Dismantled . | . . . . . . Machines Sabotaged . | . . . . . . Overloaded Fab Kills . | . . . . . . Hacking | -11 -10 -10 -9 -9 -6 --------- Run | Yrd Mat Sub Rec Scr Fac Machines Accessed 18 | . 3 1 6 4 4 Terminals 5 | . 2 . 2 . 1 Fabricators . | . . . . . . Repair Stations 2 | . 1 . . . 1 Recycling Units 5 | . . . 4 . 1 Scanalyzers . | . . . . . . Garrison Access 1 | . . . . . 1 Total Hacks 34 | . 5 1 6 14 8 Successful 29 | . 2 1 6 14 6 Failed 5 | . 3 . . . 2 Catastrophic . | . . . . . . Database Lockouts . | . . . . . . Manual 8 | . . . 6 . 2 Terminals 8 | . 2 . 2 . 4 Fabricators . | . . . . . . Repair Stations 5 | . 3 . . . 2 Recycling Units 5 | . . . 4 . 1 Scanalyzers . | . . . . . . Garrison Access 1 | . . . . . 1 Terminal Hacks 18 | . 1 1 . 14 2 Record 6 | . . . . 6 . Robot Analysis 6 | . . . . 6 . Open Door 1 | . . . . 1 . Maintenance Status 1 | . . . . . 1 Hauler Manifests 1 | . . . . . 1 Zone Layout 1 | . 1 . . . . Proto ID Catalog 2 | . . 1 . 1 . Fabricator Hacks . | . . . . . . Repair Station Hacks 2 | . 1 . . . 1 Scan Component 2 | . 1 . . . 1 Recycling Unit Hacks . | . . . . . . Scanalyzer . | . . . . . . Garrison Access Hacks 1 | . . . . . 1 Seal Access 1 | . . . . . 1 Unauthorized Hacks 8 | . . . 6 . 2 Terminals 3 | . . . 2 . 1 Botnet 3 | . . . 2 . 1 Fabricators . | . . . . . . Repair Stations . | . . . . . . Recycling Units 5 | . . . 4 . 1 Tunnel 4 | . . . 4 . . Fedlink 1 | . . . . . 1 Scanalyzers . | . . . . . . Garrison Access . | . . . . . . Data Cores Recovered . | . . . . . . Used . | . . . . . . Hacking Detections 5 | . 2 . 1 . 2 Full Trace Events . | . . . . . . Feedback Events . | . . . . . . Feedback Blocked . | . . . . . . Robot Schematics Acquired . | . . . . . . Robots Built . | . . . . . . Authchips . | . . . . . . Time . | . . . . . . Total Robot Build Rating . | . . . . . . Part Schematics Acquired . | . . . . . . Parts Built . | . . . . . . Authchips . | . . . . . . Time . | . . . . . . Total Part Build Rating . | . . . . . . Part Studies Acquired . | . . . . . . Parts Repaired . | . . . . . . Time . | . . . . . . Parts Recycled . | . . . . . . Recycled Matter . | . . . . . . Retrieved Matter . | . . . . . . Retrieved Components . | . . . . . . Parts Scanalyzed . | . . . . . . Part Schematics Acquired . | . . . . . . Parts Damaged . | . . . . . . Bothacking | -11 -10 -10 -9 -9 -6 ------------ Run | Yrd Mat Sub Rec Scr Fac Used RIF Installer . | . . . . . . Robots Hacked . | . . . . . . Non-combat . | . . . . . . Combat . | . . . . . . Robot Hacks Applied . | . . . . . . Relay Couplers Released . | . . . . . . Fabnet Peak Effective % . | . . . . . . Robots Rewired 19 | . . . 19 . . Allies Hacked . | . . . . . . Hacks Repelled . | . . . . . . Allies | -11 -10 -10 -9 -9 -6 -------- Run | Yrd Mat Sub Rec Scr Fac Total Allies 19 | . . . 19 . . Largest Group 18 | . . . 18 11 11 Highest-Rated Group 235 | . . . 235 144 144 Highest-Rated Ally 34 | . . . 34 27 27 Initial UFD Resources 24 | . . . . . 24 Total Orders 3 | . . . 3 . . STAY 2 | . . . 2 . . FOLLOW 1 | . . . 1 . . Ally Attacks 61 | . . . 31 . 30 Total Damage 1154 | . . . 582 . 572 Kills 16 | . . . 11 . 5 Allies Corrupted . | . . . . . . Allies Melted . | . . . . . . Intel | -11 -10 -10 -9 -9 -6 ------- Run | Yrd Mat Sub Rec Scr Fac Active Infowar (turns) 3638 | 24 727 1605 429 . 853 IFF 246 | . . . . . 246 Traps 268 | . . . . . 268 Seismic 3638 | 24 727 1605 429 . 853 Machine Analysis 471 | . . . . . 471 Robot Analysis Total 6 | . . . . 6 . Derelict Logs Recovered 5 | . . 1 . 4 . Drone Launches . | . . . . . . Drone Recoveries . | . . . . . . Exploration | -11 -10 -10 -9 -9 -6 ------------- Run | Yrd Mat Sub Rec Scr Fac Turns Passed 6643 | 126 727 1605 1248 2007 930 Spaces Moved 3615 | 54 407 800 560 1373 421 Core 10 | 4 . . . . 6 Treads 186 | 50 52 2 . . 82 Legs 162 | . . . . . 162 Wheels 3257 | . 355 798 560 1373 171 Hover . | . . . . . . Flight . | . . . . . . Fastest Speed 50 | 50 130 130 175 140 50 Average Speed 152 | 151 142 164 175 142 142 Slowest Speed 480 | 160 160 480 175 175 232 Overloaded Moves . | . . . . . . Propulsion Burnouts . | . . . . . . Robots Hopped . | . . . . . . Potential Cave-ins 1 | . . 1 . . . Cave-ins Triggered . | . . . . . . Exploration Rate (%) 52 | 3 65 46 99 91 9 Regions Visited 5 Branch Regions 3 Pre-discovered Areas 6 | . . . 4 2 . Known Exits Taken . | . . . . . . Unknown Exits Taken 5 | 1 1 1 1 1 . Scrap Searched 2 | . . . . 2 . Spaces Dug 16 | . 2 11 . . 3 Terrain Destroyed 113 | . 23 26 1 . 63 Melee 10 | . 2 5 . . 3 Projectile 8 | . . 6 1 . 1 AOE 95 | . 21 15 . . 59 Terrain Rammed . | . . . . . . Walls Destroyed . | . . . . . . Machines Disabled . | . . . . . . Actions | -11 -10 -10 -9 -9 -6 --------- Run | Yrd Mat Sub Rec Scr Fac Total 4396 | 77 494 949 820 1443 613 Wait 182 | 2 22 30 60 21 47 Move 3610 | 53 406 799 559 1372 421 Hop . | . . . . . . Pick Up 80 | 6 15 14 9 23 13 Fast Attach 27 | 7 5 . . . 15 Attach 26 | . 2 6 . 1 17 Detach 3 | . 1 . . . 2 Swap 40 | . 7 21 4 2 6 Drop 47 | . 3 3 8 24 9 Fire 127 | 9 28 45 5 . 40 Melee 78 | . 5 31 . . 42 Ram . | . . . . . . Kick . | . . . . . . Crush . | . . . . . . Escape Stasis . | . . . . . . Rewire 175 | . . . 175 . . Trap 1 | . . . . . 1 Miscellaneous . | . . . . . . Route ------- -11/Scrapyard -10/Materials (discovered 5 exits: [*Mat x2] / [*Min x2] / *Sub) -10/Subcaves (discovered 2 exits: [*Mat] / *Rec) -9/Recycling (discovered 2 exits: [*Fac] / *Scr) -9/Scraptown (discovered 2 exits: *Fac x2) -6/Factory History --------- Turn | Location | Event 2 | -11/Scrapyard | Discovered new exit (range 16) 127 | -11/Scrapyard | Entered Materials 300 | -10/Materials | Build established: Mutant 348 | -10/Materials | Discovered new exit (range 9) 459 | -10/Materials | Discovered new exit (range 6) 483 | -10/Materials | Discovered new exit (range 15) 621 | -10/Materials | Discovered new exit (range 5) 724 | -10/Materials | Discovered new exit (range 8) 854 | -10/Materials | Entered Subcaves 855 | -10/Subcaves | Approached by a straggling Scientist 985 | -10/Subcaves | Lost 3 parts (1p1n1w) 1120 | -10/Subcaves | Shifting Twisted Machinery released Sub. Machine Gun 1151 | -10/Subcaves | Shifting Twisted Machinery released Mak. Leg 1279 | -10/Subcaves | Build established: Scavenger-Mutant 1295 | -10/Subcaves | Core integrity fell below 50% 1406 | -10/Subcaves | Shifting Twisted Machinery released Riot Gun 1429 | -10/Subcaves | Shifting Twisted Machinery released Humpback 1584 | -10/Subcaves | Build established: Mutant 1732 | -10/Subcaves | Visited 4L-MR0's lab 1750 | -10/Subcaves | Found Cargo Legs 2027 | -10/Subcaves | A swath of the cavern ceiling suddenly collapsed 2102 | -10/Subcaves | Discovered new exit (range 14) 2109 | -10/Subcaves | A swath of the cavern ceiling suddenly collapsed 2259 | -10/Subcaves | Learned Materials trap positions 2440 | -10/Subcaves | Discovered new exit (range 9) 2459 | -10/Subcaves | Entered Recycling 2628 | -9/Recycling | Scanned before Scraplab entrance 2856 | -9/Recycling | Build established: Commander-Mutant 3137 | -9/Recycling | Discovered new exit (range 15) 3474 | -9/Recycling | Lost 7 allies 3654 | -9/Recycling | Entered Scraplab 3668 | -9/Recycling | Discovered new exit (range 3) 3707 | -9/Recycling | Entered Scraptown 3707 | -9/Scraptown | Accompanied by 11 allies 3901 | -9/Scraptown | Heard Great Nut preacher, LISTEN AND RECITE! 4163 | -9/Scraptown | Scanned Subdweller tech in exchange for log data 4167 | -9/Scraptown | Learned location of Extension (-4) 4168 | -9/Scraptown | Learned Research interactive machine intel 4170 | -9/Scraptown | Learned location of Zion (-6) 4171 | -9/Scraptown | Learned Research security intel 4191 | -9/Scraptown | Discovered new exit (range 11) 4564 | -9/Scraptown | Visited Comm Corps 4613 | -9/Scraptown | Visited Cyclists 4645 | -9/Scraptown | Visited Red Mages 4704 | -9/Scraptown | Visited SPCMW 4751 | -9/Scraptown | Visited Supply Room 4795 | -9/Scraptown | Visited Science Testing Area 4817 | -9/Scraptown | Visited UFD Registry 4817 | -9/Scraptown | Registered with UFD as "Nutbomber" 4857 | -9/Scraptown | Entered Cyclist Reading Room 4927 | -9/Scraptown | Visited Observation Area 4980 | -9/Scraptown | Visited Analyses Database 5011 | -9/Scraptown | Visited Science Guys 5196 | -9/Scraptown | Visited Curators Association 5238 | -9/Scraptown | Visited Scrap Suit Storage 5284 | -9/Scraptown | Visited Scrapoid Pod Storage 5298 | -9/Scraptown | Visited Sword Containment 5320 | -9/Scraptown | Visited Supply Room 5345 | -9/Scraptown | Visited Scrapoid Research Area 5379 | -9/Scraptown | Visited Infowarlord's Domain 5390 | -9/Scraptown | Found Exp. Terrain Scanner 5472 | -9/Scraptown | Found Scrapoid Pod 5549 | -9/Scraptown | Found Prototype Slashing Weapon 5612 | -9/Scraptown | Met Optimus 5612 | -9/Scraptown | Accepted into 0bPrime 5685 | -9/Scraptown | Discovered new exit (range 5) 5714 | -9/Scraptown | Entered Factory 5714 | -6/Factory | Accompanied by 11 allies 5714 | -6/Factory | Evolved 8 slots: Power x1, Propulsion x3, Utility x4 5732 | -6/Factory | Loaded intel: 8 recycling unit locations 5774 | -6/Factory | Garrison activated, responded to threat 5801 | -6/Factory | Lost 3 allies 6043 | -6/Factory | Lost 5 allies 6155 | -6/Factory | Garrison activated, responded to threat 6179 | -6/Factory | Build established: Scavenger-Mutant 6242 | -6/Factory | Identified Companion Sword 6299 | -6/Factory | Lost 13 parts (2p5n3u3w) 6555 | -6/Factory | Spotted B-75 Beast 6585 | -6/Factory | Core integrity fell below 50% 6639 | -6/Factory | Released all parts (3) 6640 | -6/Factory | Core integrity fell below 20% 6644 | -6/Factory | Destroyed by S-27 Virus with Autogun Last Messages --------------- 06633_ Carbon-fiber Leg destroyed. 06633_ K-01 Serf collects debris. 06636_ Carbon-fiber Leg destroyed. 06636_ Knocked back. 06637_ K-01 Serf collects debris. 06638_ Dropped Vortex Trap. 06638_ Installed Vortex Trap. 06639_ Released Companion Sword. Companion Sword: "If you dump me here you'll almost certainly regret it." 06639_ Released Hcp. Storage Unit. 06639_ Released Imp. Melee Analysis Suite. 06639_ Dropped Scrapoid Pod. 06640_ K-01 Serf collects debris. 06641_ System corrupted: Substantial component data lost. 06641_ Acquired Exp. Terrain Scanner. 06641_ K-01 Serf collects debris. 06642_ Knocked back. 06644_ Acquired Companion Sword. Map ----- +----------------------------------------------------+ | ?????????????????????????????????????????????????? | | ?????????????????????????????????????????????????? | | ?????????????????????????????????????????????????? | | ???? ????????????????????????????????????????????? | | ???? ????????????????????????????????????????????? | | ???? ????????????????????????????????????????????? | | ???? ???????????????????????????????????????????? | | ??""" """?????????????????# ?????????????????????? | | ??""" """????????????????! ?????????????????????? | | ??""" """????????????????! ?????????????????????? | | ??"" ""??????????""???? ????????????????????? | | ??"" "" ????????""" ??? """?"""?"""?"""?"""?"" | | ??? ? ????????"F ? """?"""?"""?"""?"""?"" | | ??? ?????????#""" """?"""?"""?"""?"""?"" | | ####+############ "" ?? ????????????????? | | """ """ """?"""?"""?"""?"" | | """ """ """?"""?"""?"""?"" | | """ """ """?"""?"""?"""?"" | | % ?????????????????? | | * ==%= ?? ???????????????????? | | ######+#####+#############;/######???????????????? | | # % # k[BB=! #???????????????? | | # !!! # !!|BB=k=%#???????????????? | | # !! """ [# %&!%|% s%! ###### #????? | | # !! """ # "!^%[%!* /s s #????? | | # """ [# "@%!!= ###### #????? | | # !# ""&"% #???????????????? | | # """ """ # """" ##??????????????? | | # """ """ # """" ##??????????????? | | # """ """ # """" "" #???????????????? | | "" # # """"u G" #???????????????? | | R"" # """ """ #! "" #???????????????? | | """ # """ """ # #???????????????? | | ########## """ """ #######;######???????????????? | | ?????????# #??????##????????????????????? | | ?????????? ?? #????????????????????????????? | | ??????????#???######?????????????????????????????? | | ?????????????????????????????????????????????????? | | ?????????????????????????????????????????????????? | | ?????????????????????????????????????????????????? | | ?????????????????????????????????????????????????? | | ?????????????????????????????????????????????????? | | ?????????????????????????????????????????????????? | | ?????????????????????????????????????????????????? | | ?????????????????????????????????????????????????? | | ?????????????????????????????????????????????????? | | ?????????????????????????????????????????????????? | | ?????????????????????????????????????????????????? | | ?????????????????????????????????????????????????? | | ?????????????????????????????????????????????????? | +----------------------------------------------------+ Best States ------------- Heat Dissipation 37 Coolant Potential 50 Energy Generation 31 Energy Capacity 490 Matter Stores 300 Matter Capacity 300 Sight Range 16 Terrain Scan Density 10 Armor Coverage 225 Resistance: EM 25 Core Shielding 20 Phase Shifting 5 Evasion (%) 60 Melee Accuracy 6 Recoil Reduction 5 Defensive Hacking 12 Authchip Count 3 Item Schematics ----------------- None Robot Schematics ------------------ None Fabricated ------------ Nothing Repaired ---------- Nothing Studied --------- None Alien Tech Used ----------------- None Achievements -------------- None Challenges ------------ None Game ------ Seed NeutrinoWardroneTearclaws Manual? 0 Play Time 01:05:56 Cumulative 481.3 hours Start 2026.04.13 @ 17:34:17 End 2026.04.14 @ 09:23:58 Sessions 3 Manual Loads 0 Difficulty Rogue Special Mode None Game No. 86 Rogue 86 Adventurer 0 Explorer 0 Win Type - Total 17 Types 7/1/5/1/1/0/1/1/0/0 Lore% 83 Gallery% 76 Achievement% 71 Wizard Run 0 Options --------- Layout 1 ASCII 0 Keyboard 1 Movement Vi Keybinds 1 Fullscreen 1 Font 36/Tamsyn Map View 50x40 Zoom Use 0% Tactical HUD 1 Map Filters NONE Filters NONE Steam 1 RUN: fa06f912-d9a5-4088-b321-238d17740554